Cogmind - Beta 17 *** ADVENTURER MODE // 2026.06.30 @ 23:24:58 Player: ginkogruen Result: Destroyed by Autobeam Turret with Autobeam Performance ------------- Evolutions (0) 0 Regions Visited (3) 600 Robots Destroyed (11) 55 Value Destroyed (249) 249 Prototype IDs (0) 0 Alien Tech Used (0) 0 Bonus (788) 788 TOTAL SCORE: 1692 Bonus ------- Registered with UFD 300 Met Optimus in HQ 500 Friendly Fire -12 Cogmind --------- Core Integrity 0/250 Matter 270/300 Energy 145/170 System Corruption 0% Temperature Cool (69) Movement Walking (200) Ox1 Location -7/Scraptown Parts ------- > --- POWER (1) -------- Makeshift Power Source > --- PROPULSION (2) --- Aluminum Leg Makeshift Leg > --- UTILITY (2) ------ High-capacity Storage Unit Sensor Array > --- WEAPON (2) ------- Small Laser Proton Missile Launcher > --- INVENTORY (20) --- Aluminum Leg Aluminum Leg Scrap Suit Large Storage Unit Medium Battery (150) Medium Matter Pod (100) High-capacity Matter Pod (200) Structural Scanner Machine Analyzer Signal Interpreter Advanced Signal Interpreter IFF Parser Improved Terrain Scan Processor Seismic Detector Launcher Guidance Computer Actuator Array Advanced ECM Suite Makeshift Cloaking Device CPS Tube (2) Peak State ------------ > --- POWER ------------ Makeshift Power Source > --- PROPULSION ------- Aluminum Leg Makeshift Leg > --- UTILITY ---------- High-capacity Storage Unit Sensor Array > --- WEAPON ----------- Small Laser Proton Missile Launcher > --- INVENTORY -------- Aluminum Leg Aluminum Leg Scrap Suit Large Storage Unit Medium Battery Medium Matter Pod High-capacity Matter Pod Structural Scanner Machine Analyzer Signal Interpreter Advanced Signal Interpreter IFF Parser Improved Terrain Scan Processor Seismic Detector Launcher Guidance Computer Actuator Array Advanced ECM Suite Cloaking Device CPS Tube [Rating: 21] Favorites ----------- Power Light Ion Engine Engine Light Ion Engine Propulsion Aluminum Leg Treads Light Treads Leg Aluminum Leg Wheel Compact Wheel Flight Unit Flight Unit Utility High-capacity Storage Unit Device Sensor Array Storage High-capacity Storage Unit Weapon Shotgun Energy Gun Small Laser Ballistic Gun Shotgun Launcher Proton Missile Launcher Build | -11 -10 -10 -7 ------- Run | Yrd Mat Sub Scr Slots Evolved . | . . . . Power . | . . . . Propulsion . | . . . . Utility . | . . . . Weapon . | . . . . Parts Attached 30 | 8 13 6 3 Power 5 | 1 1 2 1 Engine 5 | 1 1 2 1 Core . | . . . . Reactor . | . . . . Propulsion 12 | 4 5 2 1 Treads 2 | 2 . . . Leg 7 | . 4 2 1 Wheel 2 | 2 . . . Hover . | . . . . Flight 1 | . 1 . . Utility 6 | 1 5 . . Device 2 | . 2 . . Storage 4 | 1 3 . . Processor . | . . . . Hackware . | . . . . Protection . | . . . . Artifact . | . . . . Weapon 7 | 2 2 2 1 Energy Gun 2 | . . 2 . Energy Cannon . | . . . . Ballistic Gun 4 | 2 2 . . Ballistic Cannon . | . . . . Launcher 1 | . . . 1 Special Weapon . | . . . . Impact Weapon . | . . . . Slashing Weapon . | . . . . Piercing Weapon . | . . . . Special Melee Weapon . | . . . . Unidentified Prototypes . | . . . . Parts Lost 9 | . 1 8 . Power 2 | . 1 1 . Propulsion 4 | . . 4 . Utility . | . . . . Weapon 3 | . . 3 . Highest Loss Streak 5 | . 1 5 . To Critical Strikes . | . . . . Average Backups 15 | 2 13 11 17 Power 1 | . 1 . . Propulsion 2 | . 3 1 1 Utility 11 | . 6 9 13 Weapon . | . 1 . . Tool/Special . | . . . . Unused Backups 19 | . . . 19 Power . | . . . . Propulsion 1 | . . . 1 Utility 17 | . . . 17 Weapon . | . . . . Tool/Special 1 | . . . 1 Average Slot Usage (%) 81 | . 87 83 78 Engine 11 | . 5 12 14 Leg 27 | . 27 22 28 Device 13 | . 12 14 14 Storage 14 | . 14 14 14 Energy Gun 2 | . . 12 2 Ballistic Gun 8 | . 26 6 . Launcher 3 | . . . 5 Peak Build Rating 21 | 6 10 12 21 Average Rating 11 | 5 8 7 13 On Entrance 6 | . 6 10 8 Avg Prop Armor Cover (%) . | . . . . Naked Turns . | . . . . Heaviest Build 53 | 11 52 52 53 Greatest Support 40 | 40 32 20 30 Greatest Overweight (x) 4 | . 2 4 2 Average Overweight (x) 1 | . 1 2 1 Largest Inventory Capacity 20 | 8 20 20 20 Average Capacity 18 | 7 17 20 20 Most Carried 20 | 6 16 16 20 Average Carried 16 | 2 13 12 18 Final Capacity 20 | 8 20 20 20 Final Carried 20 | 6 15 13 20 Class Distribution -------------------- 100% | Mutant Dominant Class ---------------- Mutant | -10/Materials Mutant | -10/Subcaves Mutant | -7/Scraptown Resources | -11 -10 -10 -7 ----------- Run | Yrd Mat Sub Scr Matter Collected 1079 | 230 490 302 57 Remotely . | . . . . Salvage Created 256 | . 256 . . Parts 20 | . 20 . . Haulers Intercepted . | . . . . Recyclers Shooed . | . . . . Parts Field Recycled . | . . . . Retrieved Matter . | . . . . Parts Self-Destructed 11 | . . 11 . Prevented . | . . . . Parts Restored . | . . . . Kills | -11 -10 -10 -7 ------- Run | Yrd Mat Sub Scr Combat Hostiles Destroyed 10 | . 10 . . Guns 10 | . 10 . . Classes Destroyed 3 | . 3 . . Watcher 1 | . 1 . . Swarmer 5 | . 5 . . Grunt 5 | . 5 . . Best Kill Streak 3 | . 3 . . Combat Bots Only 3 | . 3 . . Max Kills in Single Turn 3 | . 3 . . Gunslinging 1 | . 1 . . Exploded . | . . . . Melee . | . . . . Uniques/NPCs Destroyed . | . . . . Combat | -11 -10 -10 -7 -------- Run | Yrd Mat Sub Scr Hostile Shots Fired 135 | . 45 72 18 Missed 36 | . 13 16 7 Hits 99 | . 32 56 11 Projectile 99 | . 32 56 11 Damage Taken 1276 | . 254 946 76 Core 255 | . 61 166 28 Absorbed by Shields . | . . . . Ignored by Resistances 367 | . 77 264 26 Core Remaining (%) 100 | 100 . . . Volleys Fired 78 | . 22 54 2 Largest 2 | . 2 2 2 Hottest 83 | . 46 83 79 Shots Fired 128 | . 39 85 4 Gun 126 | . 39 85 2 Cannon . | . . . . Launcher 2 | . . . 2 Special . | . . . . Kinetic 79 | . 39 40 . Thermal 30 | . . 28 2 Explosive . | . . . . Electromagnetic 19 | . . 17 2 Robot Hit Streak 49 | . 6 45 49 Robot Miss Streak 3 | . 3 1 . Penetration Max . | . . . . Secondary Targets 2 | . 2 . . Max Gunslinging Chain 1 | . 1 . . Shots Hit Robots 121 | . 32 85 4 Core Hits 17 | . 17 . . Critical Kills . | . . . . Critical Parts Destroyed . | . . . . Critical Strikes . | . . . . Melee Attacks . | . . . . Impact . | . . . . Slashing . | . . . . Piercing . | . . . . Sneak Attacks . | . . . . Combat Hostiles . | . . . . Follow-up Attacks . | . . . . Damage Inflicted 535 | . 437 10 88 Guns 470 | . 437 10 23 Cannons . | . . . . Explosions 65 | . . . 65 Melee . | . . . . Ramming . | . . . . Kinetic 437 | . 437 . . Thermal 23 | . . . 23 Explosive . | . . . . Electromagnetic 75 | . . 10 65 Impact . | . . . . Slashing . | . . . . Piercing . | . . . . Highest Corruption . | . . . . Average Corruption . | . . . . Corruption Purged . | . . . . Corruption Blocked . | . . . . Overload Shots . | . . . . Overflow Damage . | . . . . Projectiles . | . . . . Explosions . | . . . . Melee . | . . . . Knockbacks . | . . . . Impact . | . . . . Kinetic . | . . . . Secondary . | . . . . Self-Inflicted Damage 24 | . . . 24 Shots 2 | . . . 2 Rammed . | . . . . Targets Rammed . | . . . . Kicked . | . . . . Crushed . | . . . . Highest Temperature 102 | . 12 . 102 Average Temperature 33 | . 7 . 67 Received Heat Transfer 198 | . 126 12 60 Siege Activations . | . . . . Martial Activations . | . . . . Shielding Activations . | . . . . Robots Disrupted . | . . . . Combat Hostiles . | . . . . Robots Corrupted . | . . . . Combat Hostiles . | . . . . Parts Fried . | . . . . Impact Corruptions . | . . . . Robots Melted . | . . . . Combat Hostiles . | . . . . Parts Melted . | . . . . Heat Transferred 50 | . . . 50 Parts Sabotaged . | . . . . Parts Stolen . | . . . . Parts Stripped . | . . . . Power Chain Reactions . | . . . . Alert | -11 -10 -10 -7 ------- Run | Yrd Mat Sub Scr Maximum Alert Level . | . . . . Low Security (%) 100 | 100 100 . . Level 1 . | . . . . Level 2 . | . . . . Level 3 . | . . . . Level 4 . | . . . . Level 5 . | . . . . High Security . | . . . . Max Security . | . . . . Peak Influence 70 | . 70 . . Initial . | . . . . Average 8 | . 8 . . Influence Increases 262 | . 262 . . Destroy 0b10 Robot/C 200 | . 200 . . Destroy 0b10 Robot/NC 5 | . 5 . . Destroy Leader 42 | . 42 . . Lose Combat Pursuer 15 | . 15 . . Influence Decreases 262 | . 262 . . Time Decay 262 | . 262 . . Squads Dispatched 1 | . 1 . . Investigation 1 | . 1 . . Extermination . | . . . . Reinforcement . | . . . . Assault . | . . . . Garrison . | . . . . Intercept . | . . . . Searches Triggered . | . . . . Construction Impeded . | . . . . Haulers Reinforced . | . . . . Active Scanning Responses . | . . . . Cargo Convoy Interrupts . | . . . . Stealth | -11 -10 -10 -7 --------- Run | Yrd Mat Sub Scr Distress Signals 1 | . 1 . . Communications Jammed . | . . . . Distress Signals . | . . . . Times Spotted 31 | . 16 2 13 Peak Tracking Total 4 | . 4 2 3 Tactical Retreats 2 | . 1 . 1 Traps | -11 -10 -10 -7 ------- Run | Yrd Mat Sub Scr Traps Triggered . | . . . . Indirectly . | . . . . Trap Hack Attempts . | . . . . Triggered . | . . . . Disarmed . | . . . . Reprogrammed . | . . . . Reused . | . . . . Traps Extracted . | . . . . Installed . | . . . . Triggered . | . . . . Machines | -11 -10 -10 -7 ---------- Run | Yrd Mat Sub Scr Machines Disabled 3 | . . . 3 Max in Single Turn 2 | . . . 2 Machines Repaired . | . . . . Machines Dismantled . | . . . . Machines Sabotaged . | . . . . Overloaded Fab Kills . | . . . . Hacking | -11 -10 -10 -7 --------- Run | Yrd Mat Sub Scr Machines Accessed 8 | . 1 . 7 Terminals 1 | . 1 . . Fabricators . | . . . . Repair Stations . | . . . . Recycling Units . | . . . . Scanalyzers . | . . . . Garrison Access . | . . . . Total Hacks 58 | . 3 . 55 Successful 57 | . 2 . 55 Failed 1 | . 1 . . Catastrophic . | . . . . Database Lockouts . | . . . . Manual 2 | . 2 . . Terminals 3 | . 3 . . Fabricators . | . . . . Repair Stations . | . . . . Recycling Units . | . . . . Scanalyzers . | . . . . Garrison Access . | . . . . Terminal Hacks 57 | . 2 . 55 Record 57 | . 2 . 55 Fabricator Hacks . | . . . . Repair Station Hacks . | . . . . Recycling Unit Hacks . | . . . . Scanalyzer . | . . . . Garrison Access Hacks . | . . . . Unauthorized Hacks . | . . . . Terminals . | . . . . Fabricators . | . . . . Repair Stations . | . . . . Recycling Units . | . . . . Scanalyzers . | . . . . Garrison Access . | . . . . Data Cores Recovered . | . . . . Used . | . . . . Hacking Detections 1 | . 1 . . Full Trace Events 1 | . 1 . . Feedback Events . | . . . . Feedback Blocked . | . . . . Robot Schematics Acquired . | . . . . Robots Built . | . . . . Authchips . | . . . . Time . | . . . . Total Robot Build Rating . | . . . . Part Schematics Acquired . | . . . . Parts Built . | . . . . Authchips . | . . . . Time . | . . . . Total Part Build Rating . | . . . . Part Studies Acquired . | . . . . Parts Repaired . | . . . . Time . | . . . . Parts Recycled . | . . . . Recycled Matter . | . . . . Retrieved Matter . | . . . . Retrieved Components . | . . . . Parts Scanalyzed . | . . . . Part Schematics Acquired . | . . . . Parts Damaged . | . . . . Bothacking | -11 -10 -10 -7 ------------ Run | Yrd Mat Sub Scr Used RIF Installer . | . . . . Robots Hacked . | . . . . Non-combat . | . . . . Combat . | . . . . Robot Hacks Applied . | . . . . Relay Couplers Released . | . . . . Fabnet Peak Effective % . | . . . . Robots Rewired . | . . . . Allies Hacked . | . . . . Hacks Repelled . | . . . . Allies | -11 -10 -10 -7 -------- Run | Yrd Mat Sub Scr Total Allies . | . . . . Largest Group . | . . . . Highest-Rated Group . | . . . . Highest-Rated Ally . | . . . . Total Orders . | . . . . Ally Attacks . | . . . . Total Damage . | . . . . Kills . | . . . . Allies Corrupted . | . . . . Allies Melted . | . . . . Intel | -11 -10 -10 -7 ------- Run | Yrd Mat Sub Scr Active Infowar (turns) 5966 | . 1628 364 3974 Sensors 5375 | . 1037 364 3974 Structural 591 | . 591 . . Robot Analysis Total . | . . . . Derelict Logs Recovered 1 | . . . 1 Drone Launches . | . . . . Drone Recoveries . | . . . . Exploration | -11 -10 -10 -7 ------------- Run | Yrd Mat Sub Scr Turns Passed 6262 | 126 1798 364 3974 Spaces Moved 2716 | 76 786 70 1784 Core 5 | 5 . . . Treads 56 | 56 . . . Legs 2620 | . 766 70 1784 Wheels 35 | 15 20 . . Hover . | . . . . Flight . | . . . . Fastest Speed 50 | 50 100 260 200 Average Speed 217 | 140 208 302 221 Slowest Speed 400 | 160 260 400 260 Overloaded Moves . | . . . . Propulsion Burnouts . | . . . . Robots Hopped . | . . . . Potential Cave-ins . | . . . . Cave-ins Triggered . | . . . . Exploration Rate (%) 48 | 3 99 7 86 Regions Visited 3 Branch Regions 2 Pre-discovered Areas . | . . . . Known Exits Taken . | . . . . Unknown Exits Taken 3 | 1 1 1 . Scrap Searched 4 | . . . 4 Spaces Dug . | . . . . Terrain Destroyed . | . . . . Melee . | . . . . Projectile . | . . . . AOE . | . . . . Terrain Rammed . | . . . . Walls Destroyed . | . . . . Machines Disabled . | . . . . Actions | -11 -10 -10 -7 --------- Run | Yrd Mat Sub Scr Total 2953 | 90 913 138 1812 Wait 73 | . 69 4 . Move 2713 | 75 785 69 1784 Hop . | . . . . Pick Up 34 | 6 13 3 12 Fast Attach 9 | 6 1 1 1 Attach 9 | . 2 6 1 Detach 2 | . 1 . 1 Swap 18 | 3 11 1 3 Drop 17 | . 9 . 8 Fire 78 | . 22 54 2 Melee . | . . . . Ram . | . . . . Kick . | . . . . Crush . | . . . . Escape Stasis . | . . . . Rewire . | . . . . Trap . | . . . . Miscellaneous . | . . . . Route ------- -11/Scrapyard -10/Materials (discovered 5 exits: [*Mat x3] / [*Min] / [*Sub]) -10/Subcaves -7/Scraptown (discovered 2 exits: [*Fac x2]) History --------- Turn | Location | Event 12 | -11/Scrapyard | Discovered new exit (range 16) 127 | -11/Scrapyard | Entered Materials 128 | -10/Materials | Met a group of wandering Federalists 318 | -10/Materials | Build established: Mutant 401 | -10/Materials | Discovered new exit (range 5) 575 | -10/Materials | Discovered new exit (range 12) 694 | -10/Materials | Discovered new exit (range 10) 953 | -10/Materials | Discovered new exit (range 10) 989 | -10/Materials | Discovered new exit (range 14) 1925 | -10/Materials | Entered Subcaves 1926 | -10/Subcaves | Shifting Twisted Machinery released Hvy. Riot Gun 1926 | -10/Subcaves | Continued accompanying wandering Federalists (4) 1926 | -10/Subcaves | Approached by a straggling Scientist 1967 | -10/Subcaves | Core integrity fell below 50% 2041 | -10/Subcaves | Core integrity fell below 20% 2077 | -10/Subcaves | Lost 5 parts (1p2n2w) 2151 | -10/Subcaves | Lost 3 allies 2289 | -10/Subcaves | Entered Scraptown 2548 | -7/Scraptown | Heard Great Nut preacher, LISTEN AND RECITE! 3502 | -7/Scraptown | Scanned Subdweller tech in exchange for log data 3510 | -7/Scraptown | Learned Factory security intel 3666 | -7/Scraptown | Discovered new exit (range 7) 4133 | -7/Scraptown | Visited CPS Storage 4166 | -7/Scraptown | Visited Cyclists 4236 | -7/Scraptown | Visited UFD Registry 4240 | -7/Scraptown | Registered with UFD as "Nukeslicer" 4326 | -7/Scraptown | Visited Cave Peace 4996 | -7/Scraptown | Visited TADAMA 5072 | -7/Scraptown | Visited Red Mages 5204 | -7/Scraptown | Visited Fellowship of the Rings 5262 | -7/Scraptown | Visited The Evicted 5458 | -7/Scraptown | Visited Junk Repository 5535 | -7/Scraptown | Visited LU-1G1's Boring Crew 5663 | -7/Scraptown | Visited Scrap Suit Storage 5703 | -7/Scraptown | Found Scrap Suit 5796 | -7/Scraptown | Discovered new exit (range 3) 5994 | -7/Scraptown | Visited Supply Room 6063 | -7/Scraptown | Met Optimus 6063 | -7/Scraptown | Accepted into 0bPrime 6247 | -7/Scraptown | Visited Curators Association 6252 | -7/Scraptown | Civil war broke out across Scraptown 6263 | -7/Scraptown | Destroyed by Autobeam Turret with Autobeam Last Messages --------------- 06252_ ANNOUNCEMENT: Sever that connection! 06252_ 0BP_ANNOUNCE: We are one. To vict-- 06252_ ANNOUNCEMENT: Reinforcements are on the way. Do not resist and we may be able to reach an agreement. 06252_ Machine disabled. 06252_ Slug penetrates KX-0ED(g). 06253_ Autobeam Turret pops up from the ground. 06253_ Enclosure breached. 06254_ Optimus: "Bah, right when we're so close. Don't worry Nukeslicer, they can't stop us now. Get out of here and do your job, we'll deal with this." 06254_ WS-0YM(c): "We just want to collect things, dammit." 06254_ Slug penetrates KX-0ED(g). 06256_ Optimus: "No holds barred, if they're hostile, they are an enemy of the people and we must shoot to kill. Collateral damage is to be expected!" 06256_ Enclosure breached. 06260_ Slug penetrates KX-0ED(g). 06260_ KX-0ED(g) destroyed. 06263_ Slug penetrates ZZ-P8W(h). Map ----- +----------------------------------------------------+ | ??????#" "## | | ???####" | | ???"""" """""""""""""""""""""""""""" "## | | ??#"""" """""""""""""""""""""""""""" "#?? | | ??#"""" ""###### ################"" "#?? | | ??#"""" ""# ##????????#"" "### | | ??#"""" ""# X"#????????#"" "##" | | #?#"""" ""# "" "" ##????????#"" "## | | #"#"""" ""# "" "" X"#??????###"" "## | | ""#"""" ""# " " ######### #"" "## | | #######" "" "" | | #?????#" "" "" "## | | #######" ""# " " ######### #"" "##! | | ""# "" "" ""#??????###"" "## | | ""# "" "" ##????????#"" "### | | ""# X"#????????#"" "#?? | | ""# ##????????#"" "#?? | | ""###### ################"" "#?? | | """""""""""""""""""""""""""" "##" | | " """""""""""""""""""""" """ " | | "##" | | "#?? | | h "#?? | | #""""#" = ##? | | #????#" 3 [% x #? | | #????#"""""" """""""""""@! """"""""" """""" ##? | | ##?????###### ########### ########### ###### #?? | | ????????????? ????#" "#???"""""???# #?? | | ?????????????? ????##"" ""##?? ??# #?? | | ????????????????????#! =#?? #?# #?? | | ????????????????????#" "#?## ## #?? | | ???????????????????#" t "#?# ## #?? | | ???????????????????##"" ""##?# ### #?? | | ????????????????????#[ "!#??# # #?# ?? | | ????????????????????#"" ""#????# ? ???# ?? | | ????????????????????" """ "????# ?# #??# ? | | ????????????????????### "!" ###????##??##??# ? | | ??????????????????????#"###"#??????????????# ? | | ??????????????????????##???##??????????????# ##? | | ???????????????????????????????????????????? ??? | | ?????????????????????????????????????????????????? | | ?????????????????????????????????????????????????? | | ?????????????????????????????????????????????????? | | ?????????????????????????????????????????????????? | | ?????????????????????????????????????????????????? | | ?????????????????????????????????????????????????? | | ?????????????????????????????????????????????????? | | ?????????????????????????????????????????????????? | | ?????????????????????????????????????????????????? | | ?????????????????????????????????????????????????? | +----------------------------------------------------+ Best States ------------- Heat Dissipation 25 Energy Generation 15 Energy Capacity 250 Matter Stores 300 Matter Capacity 300 Sight Range 16 Robot Scan Range 14 Terrain Scan Density 10 Resistance: KI 20 Resistance: TH 20 Resistance: EX 20 Resistance: EM 20 Resistance: I 20 Resistance: S 20 Resistance: P 20 Evasion (%) 55 Recoil Reduction 2 Offensive Hacking 10 Item Schematics ----------------- None Robot Schematics ------------------ None Fabricated ------------ Nothing Repaired ---------- Nothing Studied --------- None Alien Tech Used ----------------- None Achievements -------------- Civilization 2243 Link The Feds Strength In Numbers Challenges ------------ None Game ------ Seed ZhirovModifiedInterrupter Manual? 0 Play Time 00:57:06 Cumulative 15.6 hours Start 2026.06.30 @ 22:17:44 End 2026.06.30 @ 23:24:58 Sessions 1 Manual Loads 0 Difficulty Adventurer Special Mode None Game No. 20 Rogue 8 Adventurer 12 Explorer 0 Win Type - Total 0 Types 0/0/0/0/0/0/0/0/0/0 Lore% 15 Gallery% 12 Achievement% 12 Wizard Run 0 Options --------- Layout 0 ASCII 0 Keyboard 1 Movement Vi Keybinds 0 Fullscreen 1 Font 24/Smallcaps Map View 76x50 Zoom Use 0% Tactical HUD 1 Map Filters NONE Filters NONE Steam 1 RUN: 21420807-276c-4693-96d8-3201fce9ae52